Department Family,Entity,Date,Expenses Type,Expense Area,Supplier,Transaction Number,  Total  ,
Department of Health,The Christie NHS Foundation Trust,27/02/2020,Service Contract ,Network Services,VARIAN MEDICAL SYSTEMS UK LTD,0000633824,"254,503.80",
Department of Health,The Christie NHS Foundation Trust,06/02/2020,Medical Equipment,Network Services,GILEAD SCIENCES LTD,0000635648,"224,360.80",
Department of Health,The Christie NHS Foundation Trust,06/02/2020,IT Network Contract,Digital Services,VIRGIN MEDIA BUSINESS,0000634044,"31,576.80",
Department of Health,The Christie NHS Foundation Trust,06/02/2020,Medical Equipment,Clin Support & Spec Surgery,THE CHRISTIE CLINIC (HCA),0000636026,"28,198.00",
Department of Health,The Christie NHS Foundation Trust,06/02/2020,Medical Equipment,Clin Support & Spec Surgery,THE CHRISTIE CLINIC (HCA),0000636027,"36,546.00",
Department of Health,The Christie NHS Foundation Trust,06/02/2020,Maintenance & Service Support Contract,Network Services,ONCOLOGY SYSTEMS LIMITED,0000634076,"35,174.40",
Department of Health,The Christie NHS Foundation Trust,06/02/2020,Drugs,Christie Medical Physics,ALLIANCE MEDICAL RADIOPHARMACY LIMITED,0000635033,"41,517.06",
Department of Health,The Christie NHS Foundation Trust,06/02/2020,Patient Accomodation,Network Services,STAYCITY MANCHESTER LTD,0000635273,"120,474.20",
Department of Health,The Christie NHS Foundation Trust,20/02/2020,Service Charge - Dec 19,Network Services,MID CHESHIRE HOSPITALS NHS FT,0000634948,"47,536.50",
Department of Health,The Christie NHS Foundation Trust,20/02/2020,Service Charge - Jan 20,Network Services,MID CHESHIRE HOSPITALS NHS FT,0000635069,"47,536.50",
Department of Health,The Christie NHS Foundation Trust,20/02/2020,SLA Contract Charge - Jan 20,Network Services,WRIGHTINGTON WIGAN AND LEIGH NHS FT,0000635526,"270,127.50",
Department of Health,The Christie NHS Foundation Trust,06/02/2020,Medical Equipment,Network Services,GILEAD SCIENCES LTD,0000635649,"224,360.80",
Department of Health,The Christie NHS Foundation Trust,27/02/2020,Macmillan Services,Network Services,MID CHESHIRE HOSPITALS NHS FT,0000636286,"47,536.50",
Department of Health,The Christie NHS Foundation Trust,13/02/2020,MacMillan Project - Oct to Dec 19,Manchester Cancer,WRIGHTINGTON WIGAN AND LEIGH NHS FT,0000636009,"86,440.00",
Department of Health,The Christie NHS Foundation Trust,13/02/2020,SLA Annual Contract Q3,Estates & Facilities,THE PENNINE ACUTE HOSPITAL NHS TRUST,0000636315,"38,140.50",
Department of Health,The Christie NHS Foundation Trust,20/02/2020, All Wards & Departments,The Christie NHS FT Balance,NHS SUPPLY CHAIN,0000635745,"45,287.54",
Department of Health,The Christie NHS Foundation Trust,20/02/2020,Drugs,Drugs,ALCURA UK LIMITED,0000637063,"90,370.84",
Department of Health,The Christie NHS Foundation Trust,15/02/2020,Blood Products,Network Services,NHS BLOOD AND TRANSPLANT,0000637960,"172,291.30",
Department of Health,The Christie NHS Foundation Trust,06/02/2020, All Wards & Departments,The Christie NHS FT Balance,NHS SUPPLY CHAIN,0000634949,"41,498.76",
Department of Health,The Christie NHS Foundation Trust,06/02/2020,SLA Charge - Oct 19 to Mar 20,Christie Medical Physics,WRIGHTINGTON WIGAN AND LEIGH NHS FT,0000631901,"47,136.15",
Department of Health,The Christie NHS Foundation Trust,13/02/2020, All Wards & Departments,The Christie NHS FT Balance,NHS SUPPLY CHAIN,0000634916,"56,124.58",
Department of Health,The Christie NHS Foundation Trust,13/02/2020, Drugs, Drugs,BAXTER HEALTHCARE LTD,0000635001,"111,571.40",
Department of Health,The Christie NHS Foundation Trust,13/02/2020,Construction Contract,Capital,BRADLEY DEMOLITION,0000635775,"70,560.00",
Department of Health,The Christie NHS Foundation Trust,13/02/2020,Construction Project,Capital,ELECTRICITY NORTH WEST,0000632470,"30,570.41",
Department of Health,The Christie NHS Foundation Trust,03/02/2020, Drugs,Drugs,BAXTER HEALTHCARE LTD,0000636303,"351,380.40",
Department of Health,The Christie NHS Foundation Trust,27/02/2020, Drugs,Drugs,BAXTER HEALTHCARE LTD,0000636515,"71,012.96",
Department of Health,The Christie NHS Foundation Trust,27/02/2020, Drugs,Drugs,BAXTER HEALTHCARE LTD,0000636518,"94,940.18",
Department of Health,The Christie NHS Foundation Trust,06/02/2020, Drugs,Drugs,BAXTER HEALTHCARE LTD,0000634455,"175,982.90",
Department of Health,The Christie NHS Foundation Trust,13/02/2020, Drugs,Drugs,BAXTER HEALTHCARE LTD,0000634996,"165,547.10",
Department of Health,The Christie NHS Foundation Trust,13/02/2020, Drugs,Drugs,BAXTER HEALTHCARE LTD,0000634999,"146,492.80",
Department of Health,The Christie NHS Foundation Trust,13/02/2020,Energy Contract Jan 20,Network Services,EDF ENERGY,0000636385,"40,832.07",
Department of Health,The Christie NHS Foundation Trust,13/02/2020,PET - Dec 19-20, Christie Medical Physics,MANCHESTER UNIVERSITY NHS FT,0000635770,"99,580.00",
Department of Health,The Christie NHS Foundation Trust,20/02/2020,Software Equipment,Capital,MAX 20 PROJECT SOLUTIONS LTD,0000636157,"35,466.00",
Department of Health,The Christie NHS Foundation Trust,13/02/2020, Drugs,Drugs,BAXTER HEALTHCARE LTD,0000635004,"126,050.80",
Department of Health,The Christie NHS Foundation Trust,13/02/2020, Drugs,Drugs,BAXTER HEALTHCARE LTD,0000635085,"148,094.20",
Department of Health,The Christie NHS Foundation Trust,20/02/2020, Educational Services, Research & Innovation,UNIVERSITY OF MANCHESTER,0000636535,"25,500.00",
Department of Health,The Christie NHS Foundation Trust,13/02/2020,Technology Services,School of Oncology,THINK LEARNING(THINK ASSOCIATES LTD),0000635280,"29,440.80",
Department of Health,The Christie NHS Foundation Trust,13/02/2020,Software Equipment,Digital Services,SYSTEM C HEALTHCARE,0000635868,"27,334.80",
Department of Health,The Christie NHS Foundation Trust,06/02/2020,Cleaning Supplies, Estates & Facilities,HYGIENE SOLUTIONS,0000635942,"91,398.00",
Department of Health,The Christie NHS Foundation Trust,20/02/2020,Computer Equipment,Capital,HP INC UK LIMITED,0000635938,"192,763.10",
Department of Health,The Christie NHS Foundation Trust,20/02/2020, Drugs, Drugs,BAXTER HEALTHCARE LTD,0000635548,"129,750.30",
Department of Health,The Christie NHS Foundation Trust,20/02/2020, Drugs,Drugs,BAXTER HEALTHCARE LTD,0000635550,"139,210.30",
Department of Health,The Christie NHS Foundation Trust,27/02/2020, Software Development, Capital,AIRE LOGIC LIMITED,0000636681,"68,551.87",
Department of Health,The Christie NHS Foundation Trust,20/02/2020, Drugs, Drugs,BAXTER HEALTHCARE LTD,0000635811,"210,644.50",
Department of Health,The Christie NHS Foundation Trust,13/02/2020,Technology Services,School of Oncology,THINK LEARNING(THINK ASSOCIATES LTD),0000633894,"61,682.40",
Department of Health,The Christie NHS Foundation Trust,06/02/2020,Software Equipment,Network Services,PHILIPS HEALTHCARE,0000635471,"204,000.00",
Department of Health,The Christie NHS Foundation Trust,06/02/2020, Drugs, Drugs,BAXTER HEALTHCARE LTD,0000634329,"142,946.20",
Department of Health,The Christie NHS Foundation Trust,06/02/2020, Drugs,Drugs,BAXTER HEALTHCARE LTD,0000634331,"141,497.80",
Department of Health,The Christie NHS Foundation Trust,06/02/2020, Drugs,Drugs,BAXTER HEALTHCARE LTD,0000634335,"184,979.30",
Department of Health,The Christie NHS Foundation Trust,06/02/2020, Drugs,Drugs,BAXTER HEALTHCARE LTD,0000634336,"153,353.20",
Department of Health,The Christie NHS Foundation Trust,06/02/2020,Drugs,Drugs,HEALTHCARE AT HOME LTD,0000635089,"29,598.00",
Department of Health,The Christie NHS Foundation Trust,06/02/2020,Construction Project,Capital,MACE LTD,0000634874,"26,410.50",
Department of Health,The Christie NHS Foundation Trust,27/02/2020,Computer Equipment,Capital,HP INC UK LIMITED,0000635940,"136,048.20",
Department of Health,The Christie NHS Foundation Trust,13/02/2020,Capital Contract,Capital,GALLIFORD TRY BUILDING LIMITED,0000635525,"151,574.20",
Department of Health,The Christie NHS Foundation Trust,27/02/2020, Drugs,Drugs,BAXTER HEALTHCARE LTD,0000636786,"97,054.81",
Department of Health,The Christie NHS Foundation Trust,27/02/2020,Drugs, Drugs,THE CHRISTIE CLINIC (HCA),0000637154,"43,140.00",
Department of Health,The Christie NHS Foundation Trust,20/02/2020, Drugs, Drugs,BAXTER HEALTHCARE LTD,0000635549,"106,326.70",
Department of Health,The Christie NHS Foundation Trust,20/02/2020,Computer Equipment,Finance & Business Developm,HP INC UK LIMITED,0000635939,"43,346.28",
Department of Health,The Christie NHS Foundation Trust,20/02/2020,Medical Equipment Maintenance Contract - Dec 19, Clin Support & Spec Surgery,CPP FACILITIES LLP,0000636218,"247,314.20",
Department of Health,The Christie NHS Foundation Trust,20/02/2020,Pathology Testing Services - Dec 19,Clin Support & Spec Surgery,THE CHRISTIE PATHOLOGY PARTNERSHIP LLP,0000636216,"433,668.50",
Department of Health,The Christie NHS Foundation Trust,27/02/2020,Capital Equipment Installation, Capital,CLASSIC LIFTS LIMITED,0000636469,"27,711.72",
Department of Health,The Christie NHS Foundation Trust,27/02/2020,Medical Equipment, Capital,GALLIFORD TRY BUILDING LIMITED,0000637080,"241,200.20",
Department of Health,The Christie NHS Foundation Trust,06/02/2020,Pathology Testing  (Aug 18-Jul 19), Clin Support & Spec Surgery,THE CHRISTIE PATHOLOGY PARTNERSHIP LLP,0000623372,"26,359.62",
Department of Health,The Christie NHS Foundation Trust,27/02/2020,Pet Scans - Jan,Christie Medical Physics,ALLIANCE MEDICAL LTD,0000636590,"242,634.00",
